Cogmind - Beta 14 @@@ ROGUE MODE // 2025.03.13 @ 16:04:36 Player: canerib Result: Destroyed self with Rocket Launcher Performance ------------- Evolutions (0) 0 Regions Visited (3) 600 Robots Destroyed (18) 90 Value Destroyed (372) 372 Prototype IDs (0) 0 Alien Tech Used (0) 0 Bonus (0) 0 TOTAL SCORE: 1062 Bonus ------- None Cogmind --------- Core Integrity 0/250 Matter 228/300 Energy 99/125 System Corruption 0% Temperature Cool (0) Movement Walking (120) Location -10/Subcaves Parts ------- > --- POWER (1) -------- Light Ion Engine > --- PROPULSION (2) --- Aluminum Leg Aluminum Leg > --- UTILITY (2) ------ Small Storage Unit Propulsion Shielding > --- WEAPON (2) ------- Grenade Launcher Rocket Launcher > --- INVENTORY (8) ---- Ion Engine Sensor Array Improved Terrain Scanner Medium Laser Assault Rifle Mining Laser Peak State ------------ > --- POWER ------------ Light Ion Engine > --- PROPULSION ------- Aluminum Leg Aluminum Leg > --- UTILITY ---------- Small Storage Unit Improved Terrain Scanner > --- WEAPON ----------- Medium Laser Rocket Launcher > --- INVENTORY -------- Ion Engine Sensor Array Propulsion Shielding Assault Rifle Grenade Launcher Mining Laser [Rating: 10] Favorites ----------- Power Light Ion Engine Engine Light Ion Engine Propulsion Aluminum Leg Leg Aluminum Leg Utility Small Storage Unit Device Improved Terrain Scanner Storage Small Storage Unit Protection Propulsion Shielding Weapon Medium Laser Energy Gun Medium Laser Ballistic Gun Assault Rifle Launcher Rocket Launcher Build | -11 -10 -10 -10 ------- Run | Yrd Mat Min Sub Slots Evolved . | . . . . Power . | . . . . Propulsion . | . . . . Utility . | . . . . Weapon . | . . . . Parts Attached 17 | 7 3 4 3 Power 3 | 1 1 1 . Engine 3 | 1 1 1 . Core . | . . . . Reactor . | . . . . Propulsion 5 | 2 1 2 . Treads . | . . . . Leg 5 | 2 1 2 . Wheel . | . . . . Hover . | . . . . Flight . | . . . . Utility 3 | 2 . . 1 Device 1 | 1 . . . Storage 1 | 1 . . . Processor . | . . . . Hackware . | . . . . Protection 1 | . . . 1 Artifact . | . . . . Weapon 6 | 2 1 1 2 Energy Gun 3 | 2 1 . . Energy Cannon . | . . . . Ballistic Gun 1 | . . 1 . Ballistic Cannon . | . . . . Launcher 2 | . . . 2 Special Weapon . | . . . . Impact Weapon . | . . . . Slashing Weapon . | . . . . Piercing Weapon . | . . . . Special Melee Weapon . | . . . . Unidentified Prototypes . | . . . . Parts Lost 3 | . . 3 . Power . | . . . . Propulsion 2 | . . 2 . Utility . | . . . . Weapon 1 | . . 1 . Highest Loss Streak 2 | . . 2 . To Critical Strikes . | . . . . Average Slot Usage (%) 98 | . 100 98 100 Engine 14 | . 14 14 14 Leg 26 | . 28 26 28 Device 13 | . 14 14 7 Storage 14 | . 14 14 14 Energy Gun 18 | . 28 15 7 Ballistic Gun 9 | . . 12 7 Peak Build Rating 10 | 9 9 9 10 Average Rating 8 | 5 9 8 8 On Entrance 6 | . 9 9 9 Naked Turns . | . . . . Heaviest Build 14 | 14 14 13 13 Greatest Support 20 | 20 20 20 20 Greatest Overweight (x) 4 | 4 . 4 . Average Overweight (x) . | . . . . Largest Inventory Capacity 8 | 8 8 8 8 Average Capacity 7 | 7 8 8 8 Most Carried 8 | 2 8 8 6 Average Carried 6 | 1 4 7 6 Final Capacity 8 | 8 8 8 8 Final Carried 8 | 2 8 6 6 Class Distribution -------------------- 100% | Mutant Dominant Class ---------------- Mutant | -10/Materials Mutant | -10/Mines Mutant | -10/Subcaves Resources | -11 -10 -10 -10 ----------- Run | Yrd Mat Min Sub Matter Collected 386 | 270 53 63 . Remotely . | . . . . Salvage Created 541 | 110 292 102 37 Parts 35 | 6 18 9 2 Haulers Intercepted . | . . . . Recyclers Shooed 2 | . 1 1 . Parts Field Recycled . | . . . . Retrieved Matter . | . . . . Parts Self-Destructed . | . . . . Prevented . | . . . . Kills | -11 -10 -10 -10 ------- Run | Yrd Mat Min Sub Combat Hostiles Destroyed 14 | . 7 6 1 Guns 12 | . 6 6 . AOE 1 | . . . 1 Classes Destroyed 6 | 2 1 2 1 Worker 1 | . . 1 . Tunneler 2 | 1 1 . . Recycler 1 | 1 . . . Swarmer 6 | . . 6 . Grunt 7 | . 7 . . Subdweller 1 | . . . 1 Best Kill Streak 3 | 2 2 3 1 Combat Bots Only 3 | . 2 3 1 Max Kills in Single Turn 2 | 1 1 2 1 Gunslinging 1 | . . 1 . Exploded 1 | . . . 1 Melee . | . . . . Uniques/NPCs Destroyed . | . . . . Combat | -11 -10 -10 -10 -------- Run | Yrd Mat Min Sub Hostile Shots Fired 93 | . 35 51 7 Missed 23 | . 16 6 1 Damage Taken 835 | . 217 359 259 Core 262 | . 13 114 135 Absorbed by Shields . | . . . . Core Remaining (%) 100 | 100 . . . Volleys Fired 63 | 2 40 19 2 Largest 2 | 2 2 2 2 Hottest 90 | 90 90 90 63 Shots Fired 104 | 4 64 32 4 Gun 100 | 4 64 32 . Cannon . | . . . . Launcher 4 | . . . 4 Special . | . . . . Kinetic 9 | . . 9 . Thermal 91 | 4 64 23 . Explosive 4 | . . . 4 Electromagnetic . | . . . . Robot Hit Streak 11 | 4 11 5 6 Robot Miss Streak 5 | . 2 5 . Penetration Max . | . . . . Secondary Targets 2 | . . 2 . Max Gunslinging Chain 1 | . . 1 . Shots Hit Robots 66 | 4 44 14 4 Core Hits 25 | 3 14 7 1 Critical Kills . | . . . . Critical Parts Destroyed . | . . . . Critical Strikes 3 | . 3 . . Burn 3 | . 3 . . Melee Attacks . | . . . . Impact . | . . . . Slashing . | . . . . Piercing . | . . . . Sneak Attacks . | . . . . Combat Hostiles . | . . . . Follow-up Attacks . | . . . . Damage Inflicted 975 | 45 547 168 215 Guns 760 | 45 547 168 . Cannons . | . . . . Explosions 215 | . . . 215 Melee . | . . . . Ramming . | . . . . Kinetic 49 | . . 49 . Thermal 711 | 45 547 119 . Explosive 215 | . . . 215 Electromagnetic . | . . . . Impact . | . . . . Slashing . | . . . . Piercing . | . . . . Highest Corruption . | . . . . Average Corruption . | . . . . Corruption Purged . | . . . . Corruption Blocked . | . . . . Overload Shots . | . . . . Overflow Damage . | . . . . Projectiles . | . . . . Explosions . | . . . . Melee . | . . . . Knockbacks . | . . . . Impact . | . . . . Kinetic . | . . . . Secondary . | . . . . Self-Inflicted Damage 163 | . . . 163 Shots 4 | . . . 4 Rammed . | . . . . Targets Rammed . | . . . . Kicked . | . . . . Crushed . | . . . . Highest Temperature 384 | 30 384 170 . Average Temperature 93 | 18 114 50 . Received Heat Transfer 144 | . 144 . . Effects 3 | . 3 . . Interference 2 | . 2 . . Matter Decay 1 | . 1 . . Siege Activations . | . . . . Robots Corrupted . | . . . . Combat Hostiles . | . . . . Parts Fried . | . . . . Impact Corruptions . | . . . . Robots Melted 1 | . 1 . . Combat Hostiles 1 | . 1 . . Parts Melted 5 | 1 4 . . Heat Transferred 2178 | 124 1720 334 . Parts Sabotaged . | . . . . Parts Stolen . | . . . . Parts Stripped . | . . . . Power Chain Reactions . | . . . . Alert | -11 -10 -10 -10 ------- Run | Yrd Mat Min Sub Peak Influence 206 | 10 206 81 . Initial 21 | . 6 21 . Average 36 | 4 75 24 . Maximum Alert Level 1 | . 1 . . Low Security (%) 96 | 100 88 100 . Level 1 3 | . 11 . . Level 2 . | . . . . Level 3 . | . . . . Level 4 . | . . . . Level 5 . | . . . . High Security . | . . . . Max Security . | . . . . Squads Dispatched 2 | . 2 . . Investigation . | . . . . Extermination . | . . . . Reinforcement 2 | . 2 . . Assault . | . . . . Garrison . | . . . . Intercept . | . . . . Searches Triggered . | . . . . Construction Impeded . | . . . . Haulers Reinforced . | . . . . Active Scanning Responses . | . . . . Cargo Convoy Interrupts . | . . . . Stealth | -11 -10 -10 -10 --------- Run | Yrd Mat Min Sub Distress Signals . | . . . . Communications Jammed . | . . . . Distress Signals . | . . . . Times Spotted 21 | . 13 6 2 Peak Tracking Total 3 | . 3 3 2 Tactical Retreats 2 | . 2 . . Traps | -11 -10 -10 -10 ------- Run | Yrd Mat Min Sub Traps Triggered . | . . . . Indirectly . | . . . . Trap Hack Attempts . | . . . . Triggered . | . . . . Disarmed . | . . . . Reprogrammed . | . . . . Reused . | . . . . Traps Extracted . | . . . . Installed . | . . . . Triggered . | . . . . Machines | -11 -10 -10 -10 ---------- Run | Yrd Mat Min Sub Machines Disabled . | . . . . Max in Single Turn . | . . . . Machines Repaired . | . . . . Machines Dismantled . | . . . . Machines Sabotaged . | . . . . Overloaded Fab Kills . | . . . . Hacking | -11 -10 -10 -10 --------- Run | Yrd Mat Min Sub Machines Accessed . | . . . . Terminals . | . . . . Fabricators . | . . . . Repair Stations . | . . . . Recycling Units . | . . . . Scanalyzers . | . . . . Garrison Access . | . . . . Total Hacks . | . . . . Successful . | . . . . Failed . | . . . . Catastrophic . | . . . . Database Lockouts . | . . . . Manual . | . . . . Terminals . | . . . . Fabricators . | . . . . Repair Stations . | . . . . Recycling Units . | . . . . Scanalyzers . | . . . . Garrison Access . | . . . . Terminal Hacks . | . . . . Fabricator Hacks . | . . . . Repair Station Hacks . | . . . . Recycling Unit Hacks . | . . . . Scanalyzer . | . . . . Garrison Access Hacks . | . . . . Unauthorized Hacks . | . . . . Terminals . | . . . . Fabricators . | . . . . Repair Stations . | . . . . Recycling Units . | . . . . Scanalyzers . | . . . . Garrison Access . | . . . . Data Cores Recovered . | . . . . Used . | . . . . Hacking Detections . | . . . . Full Trace Events . | . . . . Feedback Events . | . . . . Feedback Blocked . | . . . . Robot Schematics Acquired . | . . . . Robots Built . | . . . . Authchips . | . . . . Time . | . . . . Total Robot Build Rating . | . . . . Part Schematics Acquired . | . . . . Parts Built . | . . . . Authchips . | . . . . Time . | . . . . Total Part Build Rating . | . . . . Parts Repaired . | . . . . Time . | . . . . Parts Recycled . | . . . . Recycled Matter . | . . . . Retrieved Matter . | . . . . Retrieved Components . | . . . . Parts Scanalyzed . | . . . . Part Schematics Acquired . | . . . . Parts Damaged . | . . . . Bothacking | -11 -10 -10 -10 ------------ Run | Yrd Mat Min Sub Used RIF Installer . | . . . . Robots Hacked . | . . . . Non-combat . | . . . . Combat . | . . . . Robot Hacks Applied . | . . . . Relay Couplers Released . | . . . . Fabnet Peak Effective % . | . . . . Robots Rewired . | . . . . Allies Hacked . | . . . . Hacks Repelled . | . . . . Allies | -11 -10 -10 -10 -------- Run | Yrd Mat Min Sub Total Allies . | . . . . Largest Group . | . . . . Highest-Rated Group . | . . . . Highest-Rated Ally . | . . . . Total Orders . | . . . . Ally Attacks . | . . . . Total Damage . | . . . . Kills . | . . . . Allies Corrupted . | . . . . Allies Melted . | . . . . Intel | -11 -10 -10 -10 ------- Run | Yrd Mat Min Sub Robot Analysis Total . | . . . . Derelict Logs Recovered 1 | . . 1 . Drone Launches . | . . . . Drone Recoveries . | . . . . Exploration | -11 -10 -10 -10 ------------- Run | Yrd Mat Min Sub Turns Passed 1810 | 77 471 1247 15 Spaces Moved 695 | 47 158 484 6 Core 36 | 10 . 26 . Treads . | . . . . Legs 659 | 37 158 458 6 Wheels . | . . . . Hover . | . . . . Flight . | . . . . Fastest Speed 50 | 50 120 120 120 Average Speed 125 | 125 120 126 120 Slowest Speed 250 | 250 120 250 120 Overloaded Moves . | . . . . Propulsion Burnouts . | . . . . Robots Hopped . | . . . . Cave-ins Triggered . | . . . . Exploration Rate (%) 30 | 4 29 85 2 Regions Visited 3 Branch Regions 2 Pre-discovered Areas 1 | . . 1 . Known Exits Taken . | . . . . Unknown Exits Taken 3 | 1 1 1 . Scrap Searched 1 | . . 1 . Spaces Dug . | . . . . Terrain Destroyed 13 | . . . 13 Melee . | . . . . Projectile . | . . . . AOE 13 | . . . 13 Terrain Rammed . | . . . . Walls Destroyed . | . . . . Machines Disabled . | . . . . Actions | -11 -10 -10 -10 --------- Run | Yrd Mat Min Sub Total 1530 | 58 375 1086 11 Wait 744 | . 170 574 . Move 692 | 46 157 483 6 Hop . | . . . . Pick Up 10 | 3 4 3 . Fast Attach 6 | 6 . . . Attach 4 | 1 . 3 . Detach . | . . . . Swap 7 | . 3 1 3 Drop 4 | . 1 3 . Fire 63 | 2 40 19 2 Melee . | . . . . Ram . | . . . . Kick . | . . . . Crush . | . . . . Escape Stasis . | . . . . Rewire . | . . . . Trap . | . . . . Miscellaneous . | . . . . Route ------- -11/Scrapyard -10/Materials -10/Mines (discovered 3 exits: [*Mat x2] / [*Sub]) -10/Subcaves History --------- Turn | Location | Event 40 | -11/Scrapyard | Discovered new exit (range 15) 78 | -11/Scrapyard | Entered Materials 307 | -10/Materials | Build established: Mutant 508 | -10/Materials | Discovered new exit (range 8) 549 | -10/Materials | Entered Mines 559 | -10/Mines | Met a Derelict bent on vengeance 1235 | -10/Mines | Received a Rocket Launcher from a helpful Derelict 1241 | -10/Mines | Discovered new exit (range 7) 1270 | -10/Mines | Discovered new exit (range 15) 1600 | -10/Mines | Discovered new exit (range 3) 1644 | -10/Mines | Core integrity fell below 50% 1796 | -10/Mines | Entered Subcaves 1804 | -10/Subcaves | Ambushed by Subdwellers from Twisted Machinery 1811 | -10/Subcaves | Destroyed self with Rocket Launcher Last Messages --------------- 01647_ Aluminum Leg destroyed. 01650_ S-10 Pest destroyed. 01650_ Switching to secondary target: S-10 Pest. 01653_ S-10 Pest destroyed. 01654_ K-01 Serf collects debris. 01656_ Acquired 6 matter. 01660_ Acquired 3 matter. 01666_ K-01 Serf collects debris. 01667_ R-06 Scavenger collects Lgt. Assault Rifle. 01722_ Dropped Grenade Launcher. 01722_ Acquired Rocket Launcher. 01727_ Dropped Lgt. Ion Engine. 01727_ Acquired Grenade Launcher. 01753_ K-01 Serf destroyed. 01754_ Acquired 23 matter. LOCATION=UNKNOWN AMBIENT_HEAT=-10 GOAL=ESCAPE 01804_ H0-I58(R) emerges from the Twisted Machinery. 01808_ VA-J80(R) destroyed. Map ----- +----------------------------------------------------+ | ?????????????????????????????????????????????????? | | ?????????????????????????????????????????????????? | | ?????????????????????????????????????????????????? | | ?????????????????????????????????????????????????? | | ?????????????????????????????????????????????????? | | ?????????????????????????????????????????????????? | | ?????????????????????????????????????????????????? | | ?????????????????????????????????????????????????? | | ?????????????????????????????????????????????????? | | ?????????????????????????????????????????????????? | | ?????????????????????????????????????????????????? | | ????????????????????#???????#????????????????????? | | ?????????????????????????????????????????????????? | | ?????????????????????????????????????????????????? | | ???????????????????????????????????????? ????????? | | ?????????????????##??????????????????????????????? | | ????????????????? ?????????????????????????????? | | ??????????????????""?????????????????????????????? | | ??????????????????? ????????????????????????????? | | ???????????????????? ??###??????????????????????? | | ?????????????????#??? ### ####???????????????????? | | ?????????????????????# # #??###??????????????? | | ?????????????????# ??# ### #??????????????? | | ??????????????????# # ## ## # # #???? | | ????????????#????##"" R& #????? | | ?????????????????# " @ & #????? | | ???????????? " " #?????????? | | ???????????? # # ## " ### #?????????? | | ???????????????????## #???? #????????? | | ????????????????????### #???? ? #??????? | | ??????????????????????## ##???????? #??????? | | ???????????????????????# ##?????????????????? | | ???????????????????????# ##???#??????????????? | | ???????????????????????#######???????????????????? | | ???????????????????????????#????#????????????????? | | ?????????????????????????????????????????????????? | | ??????????????????????#??????????????????????????? | | ?????????????????????????????????????????????????? | | ?????????????????????????????????????????????????? | | ?????????????????????????????????????????????????? | | ?????????????????????????????????????????????????? | | ?????????????????????????????????????????????????? | | ?????????????????????????????????????????????????? | | ?????????????????????????????????????????????????? | | ?????????????????????????????????????????????????? | | ?????????????????????????????????????????????????? | | ?????????????????????????????????????????????????? | | ?????????????????????????????????????????????????? | | | | | +----------------------------------------------------+ Best States ------------- Heat Dissipation 25 Energy Generation 10 Energy Capacity 250 Matter Stores 300 Matter Capacity 300 Sight Range 16 Terrain Scan Range 16 Terrain Scan Density 10 Propulsion Shielding 33 Evasion (%) 55 Item Schematics ----------------- None Robot Schematics ------------------ None Fabricated ------------ Nothing Alien Tech Used ----------------- None Achievements -------------- None Challenges ------------ None Game ------ Seed AutogunRecoilAccelerator Manual? 0 Play Time 00:07:45 Cumulative 65.9 hours Start 2025.03.13 @ 15:57:03 End 2025.03.13 @ 16:04:36 Sessions 1 Manual Loads 0 Difficulty Rogue Special Mode None Game No. 97 Rogue 97 Adventurer 0 Explorer 0 Win Type - Total 1 Types 1/0/0/0/0/0/0/0/0 Lore% 29 Gallery% 42 Achievement% 37 Wizard Run 0 Options --------- Layout 1 ASCII 1 Keyboard 0 Movement Numpad Keybinds 0 Fullscreen 1 Font 48/Smallcaps Map View 76x35 Zoom Use 0% Tactical HUD 1 Map Filters NONE Filters NONE Steam 1 RUN: 68be4d8f-6256-4a51-b407-532cd7094a3d